[Event "Live Chess"]
[Site "Chess.com"]
[Date "2023.05.20"]
[Round "-"]
[White "worldchessleaguelive"]
[Black "AbilifyXL"]
[Result "0-1"]
[WhiteElo "1346"]
[BlackElo "1958"]
[TimeControl "300"]
[EndTime "11:29:06 PDT"]
[Termination "AbilifyXL won by resignation"]

1. d3 {[%clk 0:04:54.9]} 1... d5 {[%clk 0:04:59.3]} 2. Bf4 {[%clk 0:04:52.2]}
2... c5 {[%clk 0:04:58.6]} 3. Nf3 {[%clk 0:04:50.8]} 3... Nc6 {[%clk 0:04:58.2]}
4. e3 {[%clk 0:04:49.9]} 4... Nf6 {[%clk 0:04:57.8]} 5. Be2 {[%clk 0:04:49.1]}
5... Bg4 {[%clk 0:04:57.4]} 6. O-O {[%clk 0:04:48.2]} 6... e6 {[%clk 0:04:55.8]}
7. h3 {[%clk 0:04:44.4]} 7... Bh5 {[%clk 0:04:54.4]} 8. Ne5 {[%clk 0:04:41.4]}
8... Bxe2 {[%clk 0:04:52.3]} 9. Qxe2 {[%clk 0:04:36.7]} 9... Rc8 {[%clk
0:04:51.6]} 10. Nxc6 {[%clk 0:04:35.5]} 10... Rxc6 {[%clk 0:04:50.1]} 11. Nc3
{[%clk 0:04:33.1]} 11... Bd6 {[%clk 0:04:49]} 12. Bxd6 {[%clk 0:04:31.5]} 12...
Qxd6 {[%clk 0:04:48.6]} 13. e4 {[%clk 0:04:29.7]} 13... dxe4 {[%clk 0:04:45.1]}
14. Nxe4 {[%clk 0:04:27.8]} 14... Nxe4 {[%clk 0:04:44.6]} 15. dxe4 {[%clk
0:04:25.4]} 15... O-O {[%clk 0:04:43.8]} 16. Rfd1 {[%clk 0:04:24.4]} 16... Qe5
{[%clk 0:04:42.4]} 17. c3 {[%clk 0:04:23]} 17... Rd6 {[%clk 0:04:40.3]} 18. Rxd6
{[%clk 0:04:21.2]} 18... Qxd6 {[%clk 0:04:37]} 19. Rd1 {[%clk 0:04:20.7]} 19...
Qc7 {[%clk 0:04:34.3]} 20. Rd3 {[%clk 0:04:17]} 20... Rd8 {[%clk 0:04:31.9]} 21.
Qd2 {[%clk 0:04:14]} 21... Rxd3 {[%clk 0:04:30.9]} 22. Qxd3 {[%clk 0:04:13.3]}
22... h6 {[%clk 0:04:30.6]} 23. f3 {[%clk 0:04:10.1]} 23... a6 {[%clk
0:04:29.1]} 24. Kf2 {[%clk 0:04:08.9]} 24... b5 {[%clk 0:04:28]} 25. Ke3 {[%clk
0:04:07.8]} 25... c4 {[%clk 0:04:27.1]} 26. Qd4 {[%clk 0:04:02.7]} 26... Qg3
{[%clk 0:04:25.6]} 27. Qd8+ {[%clk 0:03:52.6]} 27... Kh7 {[%clk 0:04:24]} 28.
Qf8 {[%clk 0:03:46.2]} 28... Kg6 {[%clk 0:04:21]} 29. Qc8 {[%clk 0:03:41.2]}
29... Qxg2 {[%clk 0:04:17.6]} 30. Qxa6 {[%clk 0:03:40.1]} 30... Qxb2 {[%clk
0:04:14.2]} 31. Kd4 {[%clk 0:03:31.5]} 31... Qd2+ {[%clk 0:04:10.1]} 32. Kc5
{[%clk 0:03:30.6]} 32... Qxc3 {[%clk 0:04:07.2]} 33. Qxb5 {[%clk 0:03:29.7]}
33... Qxf3 {[%clk 0:04:04.8]} 34. Qxc4 {[%clk 0:03:23.3]} 34... Qa3+ {[%clk
0:04:03.3]} 35. Kd4 {[%clk 0:03:18.2]} 35... Qa7+ {[%clk 0:03:58.4]} 36. Ke5
{[%clk 0:03:11]} 36... f6+ {[%clk 0:03:55.8]} 37. Kd6 {[%clk 0:03:09.1]} 37...
e5 {[%clk 0:03:48]} 38. a4 {[%clk 0:02:56.1]} 38... Qd4+ {[%clk 0:03:45.7]} 39.
Qd5 {[%clk 0:02:50.6]} 39... Qxa4 {[%clk 0:03:43.4]} 40. Ke7 {[%clk 0:02:46.7]}
40... Qb4+ {[%clk 0:03:37.7]} 41. Ke8 {[%clk 0:02:43.8]} 41... Qb8+ {[%clk
0:03:33.1]} 42. Ke7 {[%clk 0:02:42.6]} 42... Qc7+ {[%clk 0:03:31.8]} 43. Ke8
{[%clk 0:02:41.7]} 43... h5 {[%clk 0:03:25.7]} 44. Qe6 {[%clk 0:02:36.7]} 44...
Qb8+ {[%clk 0:03:19.4]} 45. Ke7 {[%clk 0:02:29.4]} 45... Qb7+ {[%clk 0:03:17.3]}
46. Ke8 {[%clk 0:02:28.2]} 46... Qxe4 {[%clk 0:03:16.4]} 47. Qf7+ {[%clk
0:02:22.1]} 47... Kh6 {[%clk 0:03:14.8]} 48. Qg8 {[%clk 0:02:12.9]} 48... Qg6+
{[%clk 0:03:13.3]} 49. Kf8 {[%clk 0:02:11.1]} 49... e4 {[%clk 0:03:09.8]} 50.
Qh8+ {[%clk 0:02:06.7]} 50... Kg5 {[%clk 0:03:08.7]} 51. Qg8 {[%clk 0:02:00.5]}
51... f5 {[%clk 0:03:07.3]} 52. Qd5 {[%clk 0:01:58]} 52... Qf6+ {[%clk
0:03:06.1]} 53. Kg8 {[%clk 0:01:56.6]} 53... g6 {[%clk 0:03:03.9]} 54. Qd2+
{[%clk 0:01:54.4]} 54... f4 {[%clk 0:03:02.3]} 55. Qg2+ {[%clk 0:01:53]} 55...
Kf5 {[%clk 0:03:01.6]} 56. Qb2 {[%clk 0:01:46]} 56... Qxb2 {[%clk 0:02:58.1]}
0-1

[Event "Live Chess"]
[Site "Chess.com"]
[Date "2023.05.20"]
[Round "-"]
[White "Geomorph"]
[Black "MaximKris"]
[Result "0-1"]
[WhiteElo "1222"]
[BlackElo "1881"]
[TimeControl "300"]
[EndTime "11:29:07 PDT"]
[Termination "MaximKris won by checkmate"]

1. e4 {[%clk 0:04:58.6]} 1... e5 {[%clk 0:04:58.9]} 2. Nf3 {[%clk 0:04:57.2]}
2... Nc6 {[%clk 0:04:57.9]} 3. Bc4 {[%clk 0:04:56.6]} 3... Bc5 {[%clk
0:04:56.5]} 4. O-O {[%clk 0:04:55]} 4... Nf6 {[%clk 0:04:55]} 5. d4 {[%clk
0:04:54.2]} 5... exd4 {[%clk 0:04:53.2]} 6. e5 {[%clk 0:04:52.3]} 6... d5 {[%clk
0:04:52.1]} 7. exf6 {[%clk 0:04:50.4]} 7... dxc4 {[%clk 0:04:51.1]} 8. fxg7
{[%clk 0:04:43.1]} 8... Rg8 {[%clk 0:04:49.3]} 9. Re1+ {[%clk 0:04:42.2]} 9...
Be6 {[%clk 0:04:48]} 10. Ng5 {[%clk 0:04:40.1]} 10... Qd5 {[%clk 0:04:40.4]} 11.
Qh5 {[%clk 0:04:27]} 11... O-O-O {[%clk 0:04:27.2]} 12. Qxh7 {[%clk 0:04:14.9]}
12... Ne5 {[%clk 0:04:15.3]} 13. Nxe6 {[%clk 0:03:58.3]} 13... Qxe6 {[%clk
0:04:13.1]} 14. Bf4 {[%clk 0:03:48.9]} 14... Nf3+ {[%clk 0:04:10.6]} 15. Kf1
{[%clk 0:03:40.5]} 15... Qxe1# {[%clk 0:04:07.5]} 0-1

[Event "Live Chess"]
[Site "Chess.com"]
[Date "2023.05.20"]
[Round "-"]
[White "LiamBellwood"]
[Black "laki79"]
[Result "1-0"]
[WhiteElo "2089"]
[BlackElo "2228"]
[TimeControl "300"]
[EndTime "11:29:25 PDT"]
[Termination "LiamBellwood won on time"]

1. d4 {[%clk 0:04:59.6]} 1... Nf6 {[%clk 0:04:58.1]} 2. Nc3 {[%clk 0:04:59.3]}
2... d5 {[%clk 0:04:55.3]} 3. Bf4 {[%clk 0:04:58.8]} 3... c6 {[%clk 0:04:52.2]}
4. e3 {[%clk 0:04:58.1]} 4... g6 {[%clk 0:04:50.8]} 5. Nf3 {[%clk 0:04:55.4]}
5... Bg7 {[%clk 0:04:50.2]} 6. Be2 {[%clk 0:04:54.9]} 6... Nbd7 {[%clk 0:04:48]}
7. Qd2 {[%clk 0:04:53.5]} 7... b5 {[%clk 0:04:45.9]} 8. Ne5 {[%clk 0:04:51.6]}
8... Nxe5 {[%clk 0:04:41.5]} 9. Bxe5 {[%clk 0:04:50.9]} 9... O-O {[%clk
0:04:37.1]} 10. O-O {[%clk 0:04:46.6]} 10... Nd7 {[%clk 0:04:33.1]} 11. Bxg7
{[%clk 0:04:44.3]} 11... Kxg7 {[%clk 0:04:33]} 12. f3 {[%clk 0:04:43.3]} 12...
e5 {[%clk 0:04:31.1]} 13. e4 {[%clk 0:04:37.8]} 13... b4 {[%clk 0:04:11.7]} 14.
Na4 {[%clk 0:04:20.8]} 14... exd4 {[%clk 0:03:58.2]} 15. Qxd4+ {[%clk
0:04:16.8]} 15... Qf6 {[%clk 0:03:57.4]} 16. Qxb4 {[%clk 0:03:53.5]} 16... Rb8
{[%clk 0:03:29.8]} 17. Qd2 {[%clk 0:03:31.6]} 17... d4 {[%clk 0:03:17.5]} 18. c3
{[%clk 0:03:16.8]} 18... dxc3 {[%clk 0:03:00.7]} 19. Nxc3 {[%clk 0:03:07.3]}
19... Nb6 {[%clk 0:02:55.1]} 20. Rad1 {[%clk 0:03:04]} 20... Be6 {[%clk
0:02:51.6]} 21. Qd4 {[%clk 0:02:48.1]} 21... Rfd8 {[%clk 0:02:43.5]} 22. Qxf6+
{[%clk 0:02:42.7]} 22... Kxf6 {[%clk 0:02:43.4]} 23. Rxd8 {[%clk 0:02:42]} 23...
Rxd8 {[%clk 0:02:41.5]} 24. Rd1 {[%clk 0:02:41.6]} 24... Rxd1+ {[%clk
0:02:37.7]} 25. Bxd1 {[%clk 0:02:41.5]} 25... Nc4 {[%clk 0:02:36]} 26. b3 {[%clk
0:02:26.1]} 26... Ne3 {[%clk 0:02:19]} 27. Kf2 {[%clk 0:02:25.5]} 27... Nxd1+
{[%clk 0:02:13.3]} 28. Nxd1 {[%clk 0:02:25.4]} 28... Ke5 {[%clk 0:02:06.9]} 29.
Ke3 {[%clk 0:02:24.8]} 29... g5 {[%clk 0:02:06.1]} 30. g3 {[%clk 0:02:24]} 30...
Kd6 {[%clk 0:01:57.5]} 31. f4 {[%clk 0:02:06.1]} 31... gxf4+ {[%clk 0:01:55]}
32. gxf4 {[%clk 0:01:59.5]} 32... f6 {[%clk 0:01:41.3]} 33. Nf2 {[%clk
0:01:54.8]} 33... Kc5 {[%clk 0:01:36.7]} 34. Nd3+ {[%clk 0:01:38.3]} 34... Kb5
{[%clk 0:01:33.1]} 35. a4+ {[%clk 0:01:34.2]} 35... Ka5 {[%clk 0:01:30.1]} 36.
b4+ {[%clk 0:01:33.8]} 36... Kb6 {[%clk 0:01:24.3]} 37. a5+ {[%clk 0:01:31.4]}
37... Kb5 {[%clk 0:01:21.3]} 38. Kd4 {[%clk 0:01:31]} 38... Bc4 {[%clk
0:01:10.3]} 39. e5 {[%clk 0:01:00.7]} 39... fxe5+ {[%clk 0:01:01]} 40. Nxe5
{[%clk 0:00:55.2]} 40... Ba2 {[%clk 0:00:37.6]} 41. f5 {[%clk 0:00:54.1]} 41...
Kxb4 {[%clk 0:00:35.2]} 42. f6 {[%clk 0:00:50.1]} 42... c5+ {[%clk 0:00:30.6]}
43. Ke4 {[%clk 0:00:40.3]} 43... Kxa5 {[%clk 0:00:28]} 44. f7 {[%clk 0:00:30]}
44... Bxf7 {[%clk 0:00:25.9]} 45. Nxf7 {[%clk 0:00:29.9]} 45... Kb4 {[%clk
0:00:24.6]} 46. Ng5 {[%clk 0:00:24]} 46... c4 {[%clk 0:00:21.6]} 47. Ke3 {[%clk
0:00:15.8]} 47... Kb3 {[%clk 0:00:19.2]} 48. Ne4 {[%clk 0:00:15.1]} 48... c3
{[%clk 0:00:18.3]} 49. Kd3 {[%clk 0:00:09.4]} 49... c2 {[%clk 0:00:14.4]} 50.
Nd2+ {[%clk 0:00:06.5]} 50... Kb2 {[%clk 0:00:13.6]} 51. Nc4+ {[%clk 0:00:06]}
51... Kb1 {[%clk 0:00:11.7]} 52. Nd2+ {[%clk 0:00:05.5]} 52... Kc1 {[%clk
0:00:09.5]} 53. Nc4 {[%clk 0:00:04.4]} 53... Kd1 {[%clk 0:00:07.8]} 54. Nb2+
{[%clk 0:00:03.7]} 54... Ke1 {[%clk 0:00:05.3]} 55. Nc4 {[%clk 0:00:03.3]} 55...
c1=Q {[%clk 0:00:03.5]} 56. Ne3 {[%clk 0:00:02.5]} 56... Qxe3+ {[%clk
0:00:02.4]} 57. Kxe3 {[%clk 0:00:02.4]} 57... a5 {[%clk 0:00:01.4]} 58. Ke4
{[%clk 0:00:02.3]} 58... a4 {[%clk 0:00:00.9]} 59. h4 {[%clk 0:00:02.2]} 59...
a3 {[%clk 0:00:00.5]} 60. h5 {[%clk 0:00:02.1]} 60... a2 {[%clk 0:00:00.1]} 61.
Kf5 {[%clk 0:00:02]} 1-0

[Event "Live Chess"]
[Site "Chess.com"]
[Date "2023.05.20"]
[Round "-"]
[White "blunderabit"]
[Black "gmnorfolk"]
[Result "1-0"]
[WhiteElo "1897"]
[BlackElo "2084"]
[TimeControl "300"]
[EndTime "11:29:26 PDT"]
[Termination "blunderabit won by resignation"]

1. e4 {[%clk 0:04:56.1]} 1... e5 {[%clk 0:04:59.2]} 2. Nf3 {[%clk 0:04:52.8]}
2... Nc6 {[%clk 0:04:58.3]} 3. Bb5 {[%clk 0:04:52.3]} 3... a6 {[%clk 0:04:56.9]}
4. Ba4 {[%clk 0:04:50.4]} 4... Nf6 {[%clk 0:04:55.9]} 5. O-O {[%clk 0:04:47.3]}
5... Be7 {[%clk 0:04:55.4]} 6. Re1 {[%clk 0:04:44.1]} 6... b5 {[%clk 0:04:54.5]}
7. Bb3 {[%clk 0:04:42.9]} 7... O-O {[%clk 0:04:54.4]} 8. a4 {[%clk 0:04:41.6]}
8... Bb7 {[%clk 0:04:52.1]} 9. d3 {[%clk 0:04:37.4]} 9... d6 {[%clk 0:04:49.8]}
10. c3 {[%clk 0:04:35.2]} 10... Na5 {[%clk 0:04:24.8]} 11. Bc2 {[%clk 0:04:32]}
11... c5 {[%clk 0:04:23.8]} 12. Nbd2 {[%clk 0:04:28.9]} 12... Rc8 {[%clk
0:04:19]} 13. axb5 {[%clk 0:04:25.1]} 13... axb5 {[%clk 0:04:16.6]} 14. Nf1
{[%clk 0:04:19.2]} 14... h6 {[%clk 0:04:04.6]} 15. Ng3 {[%clk 0:04:17]} 15...
Re8 {[%clk 0:03:54.4]} 16. Nf5 {[%clk 0:04:13.8]} 16... Bf8 {[%clk 0:03:53]} 17.
h3 {[%clk 0:04:03.6]} 17... c4 {[%clk 0:03:51.4]} 18. Nh2 {[%clk 0:03:31.3]}
18... cxd3 {[%clk 0:03:46.8]} 19. Qxd3 {[%clk 0:03:22.4]} 19... Bc6 {[%clk
0:03:36]} 20. Qg3 {[%clk 0:02:54.3]} 20... Kh8 {[%clk 0:03:29.1]} 21. Ng4 {[%clk
0:02:51.3]} 21... Nxg4 {[%clk 0:03:19.9]} 22. hxg4 {[%clk 0:02:47.9]} 22... d5
{[%clk 0:03:07.3]} 23. exd5 {[%clk 0:02:39.5]} 23... Qxd5 {[%clk 0:03:02.8]} 24.
Rxa5 {[%clk 0:02:34.7]} 24... e4 {[%clk 0:02:57.7]} 25. Be3 {[%clk 0:02:16.7]}
25... Qe6 {[%clk 0:02:49.3]} 26. Ra6 {[%clk 0:02:01.1]} 26... Qd7 {[%clk
0:02:48.1]} 27. Bd4 {[%clk 0:01:46.5]} 27... f6 {[%clk 0:02:39.9]} 28. Ra7
{[%clk 0:01:35]} 28... Rc7 {[%clk 0:02:34.8]} 29. Rxc7 {[%clk 0:01:31.5]} 1-0

[Event "Live Chess"]
[Site "Chess.com"]
[Date "2023.05.20"]
[Round "-"]
[White "onemoretime1975"]
[Black "Ferrarifan27"]
[Result "0-1"]
[WhiteElo "1918"]
[BlackElo "2110"]
[TimeControl "300"]
[EndTime "11:29:29 PDT"]
[Termination "Ferrarifan27 won by resignation"]

1. e4 {[%clk 0:04:58.3]} 1... e5 {[%clk 0:04:59]} 2. Nf3 {[%clk 0:04:56.6]} 2...
Nc6 {[%clk 0:04:57.9]} 3. Bc4 {[%clk 0:04:54.5]} 3... Nd4 {[%clk 0:04:52.3]} 4.
c3 {[%clk 0:04:47.7]} 4... Nxf3+ {[%clk 0:04:50.8]} 5. Qxf3 {[%clk 0:04:46]}
5... Qf6 {[%clk 0:04:50.4]} 6. Qxf6 {[%clk 0:04:33.5]} 6... Nxf6 {[%clk
0:04:50.3]} 7. f3 {[%clk 0:04:31.7]} 7... Bc5 {[%clk 0:04:47.2]} 8. Ke2 {[%clk
0:04:22.2]} 8... d6 {[%clk 0:04:44.7]} 9. d3 {[%clk 0:04:20.7]} 9... O-O {[%clk
0:04:43.7]} 10. Be3 {[%clk 0:04:19.4]} 10... Bxe3 {[%clk 0:04:40.7]} 11. Kxe3
{[%clk 0:04:18.2]} 11... c6 {[%clk 0:04:36.6]} 12. Bb3 {[%clk 0:04:13.1]} 12...
d5 {[%clk 0:04:34.2]} 13. Nd2 {[%clk 0:04:06.6]} 13... Be6 {[%clk 0:04:31.3]}
14. d4 {[%clk 0:03:59.9]} 14... exd4+ {[%clk 0:04:28.5]} 15. Kxd4 {[%clk
0:03:46.1]} 15... Rad8 {[%clk 0:04:26.3]} 16. Ke3 {[%clk 0:03:35.6]} 16... Rfe8
{[%clk 0:04:19.7]} 17. e5 {[%clk 0:03:26]} 17... Bf5 {[%clk 0:04:13.8]} 18. g4
{[%clk 0:03:18.8]} 18... Rxe5+ {[%clk 0:04:04.1]} 19. Kf4 {[%clk 0:03:15.6]}
19... Re2 {[%clk 0:04:03.2]} 20. Kxf5 {[%clk 0:02:51.8]} 20... Rxd2 {[%clk
0:03:59.1]} 21. Rab1 {[%clk 0:02:49.4]} 21... Re8 {[%clk 0:03:57]} 22. Bd1
{[%clk 0:02:44]} 22... Rd3 {[%clk 0:03:52.5]} 23. Kf4 {[%clk 0:02:37.1]} 23...
Rde3 {[%clk 0:03:50.6]} 24. Bc2 {[%clk 0:02:26.7]} 24... Nd7 {[%clk 0:03:38]}
25. Rhd1 {[%clk 0:02:11.4]} 25... Re2 {[%clk 0:03:15.6]} 26. Bf5 {[%clk
0:02:09.2]} 26... Ne5 {[%clk 0:03:02.2]} 27. Re1 {[%clk 0:02:03.6]} 27... Rxe1
{[%clk 0:02:59]} 28. Rxe1 {[%clk 0:02:01.2]} 28... Ng6+ {[%clk 0:02:56.7]} 29.
Bxg6 {[%clk 0:01:57.2]} 29... Rxe1 {[%clk 0:02:55.5]} 0-1

[Event "Live Chess"]
[Site "Chess.com"]
[Date "2023.05.20"]
[Round "-"]
[White "HoarseyHorsey"]
[Black "mach247"]
[Result "0-1"]
[WhiteElo "1371"]
[BlackElo "1309"]
[TimeControl "300"]
[EndTime "11:29:39 PDT"]
[Termination "mach247 won by resignation"]

1. d4 {[%clk 0:04:55.6]} 1... Nf6 {[%clk 0:04:58.3]} 2. c4 {[%clk 0:04:53.7]}
2... e6 {[%clk 0:04:57.8]} 3. Nc3 {[%clk 0:04:52.3]} 3... d5 {[%clk 0:04:57.4]}
4. cxd5 {[%clk 0:04:51.7]} 4... Nxd5 {[%clk 0:04:56.9]} 5. e4 {[%clk 0:04:50.5]}
5... Nxc3 {[%clk 0:04:56]} 6. bxc3 {[%clk 0:04:49.5]} 6... e5 {[%clk 0:04:51.6]}
7. Nf3 {[%clk 0:04:47.4]} 7... exd4 {[%clk 0:04:50.7]} 8. cxd4 {[%clk
0:04:47.3]} 8... Bb4+ {[%clk 0:04:48.7]} 9. Bd2 {[%clk 0:04:46.4]} 9... Bxd2+
{[%clk 0:04:48.2]} 10. Qxd2 {[%clk 0:04:46.2]} 10... O-O {[%clk 0:04:47.5]} 11.
Bc4 {[%clk 0:04:44.7]} 11... Bg4 {[%clk 0:04:44]} 12. Qd3 {[%clk 0:04:41]} 12...
Bxf3 {[%clk 0:04:40]} 13. Qxf3 {[%clk 0:04:39.7]} 13... Qxd4 {[%clk 0:04:39.5]}
14. Qe2 {[%clk 0:04:36.3]} 14... Qxa1+ {[%clk 0:04:34.3]} 0-1

[Event "Live Chess"]
[Site "Chess.com"]
[Date "2023.05.20"]
[Round "-"]
[White "Davidagye"]
[Black "ReceptiveCamel"]
[Result "1-0"]
[WhiteElo "1674"]
[BlackElo "626"]
[TimeControl "300"]
[EndTime "11:29:43 PDT"]
[Termination "Davidagye won by checkmate"]

1. e4 {[%clk 0:04:58.7]} 1... e5 {[%clk 0:04:58.4]} 2. Bc4 {[%clk 0:04:58.2]}
2... Nf6 {[%clk 0:04:56]} 3. f4 {[%clk 0:04:54.2]} 3... exf4 {[%clk 0:04:53.9]}
4. Nf3 {[%clk 0:04:50.6]} 4... Nxe4 {[%clk 0:04:51.4]} 5. O-O {[%clk 0:04:49.3]}
5... Bc5+ {[%clk 0:04:48]} 6. d4 {[%clk 0:04:47.9]} 6... Bd6 {[%clk 0:04:42.4]}
7. Re1 {[%clk 0:04:47.1]} 7... f5 {[%clk 0:04:22.2]} 8. Nc3 {[%clk 0:04:42.9]}
8... b6 {[%clk 0:04:20.1]} 9. Nxe4 {[%clk 0:04:40.9]} 9... fxe4 {[%clk
0:04:17.3]} 10. Rxe4+ {[%clk 0:04:40.6]} 10... Be7 {[%clk 0:04:14.6]} 11. Ng5
{[%clk 0:04:32.5]} 11... Bb7 {[%clk 0:04:09.4]} 12. Bf7+ {[%clk 0:04:30.3]}
12... Kf8 {[%clk 0:04:06.9]} 13. Bxf4 {[%clk 0:04:26.2]} 13... Bxe4 {[%clk
0:04:03.8]} 14. Qh5 {[%clk 0:04:19.7]} 14... g6 {[%clk 0:03:54.5]} 15. Qh6#
{[%clk 0:04:16.2]} 1-0

[Event "Live Chess"]
[Site "Chess.com"]
[Date "2023.05.20"]
[Round "-"]
[White "Vladyslav2008"]
[Black "wadsy27"]
[Result "0-1"]
[WhiteElo "2173"]
[BlackElo "2589"]
[TimeControl "300"]
[EndTime "11:29:45 PDT"]
[Termination "wadsy27 won by resignation"]

1. d4 {[%clk 0:04:58.1]} 1... d5 {[%clk 0:04:58.3]} 2. c4 {[%clk 0:04:52.2]}
2... c6 {[%clk 0:04:56.5]} 3. Nf3 {[%clk 0:04:50.5]} 3... Nf6 {[%clk 0:04:54.8]}
4. e3 {[%clk 0:04:47.2]} 4... Bf5 {[%clk 0:04:53.1]} 5. Nc3 {[%clk 0:04:45.8]}
5... a6 {[%clk 0:04:51.7]} 6. b3 {[%clk 0:04:36.5]} 6... b5 {[%clk 0:04:47.6]}
7. c5 {[%clk 0:04:31.9]} 7... a5 {[%clk 0:04:44]} 8. Ne5 {[%clk 0:04:26.9]} 8...
e6 {[%clk 0:04:39.1]} 9. a4 {[%clk 0:04:04.5]} 9... b4 {[%clk 0:04:34.3]} 10.
Ne2 {[%clk 0:04:01.7]} 10... Nfd7 {[%clk 0:04:31]} 11. f4 {[%clk 0:03:54.3]}
11... Nxe5 {[%clk 0:04:28.7]} 12. fxe5 {[%clk 0:03:52.9]} 12... Nd7 {[%clk
0:04:27.4]} 13. Ng3 {[%clk 0:03:51.3]} 13... Bg6 {[%clk 0:04:24.5]} 14. Be2
{[%clk 0:03:49.4]} 14... Nxc5 {[%clk 0:04:19.1]} 15. dxc5 {[%clk 0:03:46.5]}
15... Bxc5 {[%clk 0:04:19]} 16. O-O {[%clk 0:03:42]} 16... Qg5 {[%clk
0:04:15.7]} 17. Kh1 {[%clk 0:03:31.2]} 17... Qxe5 {[%clk 0:04:11.5]} 18. Bd2
{[%clk 0:03:29.5]} 18... h5 {[%clk 0:04:06.9]} 19. Rc1 {[%clk 0:02:59.1]} 19...
Bd6 {[%clk 0:03:59.5]} 20. Rf4 {[%clk 0:02:50.9]} 20... h4 {[%clk 0:03:56.2]}
21. Nf1 {[%clk 0:02:48.4]} 21... h3 {[%clk 0:03:51.3]} 22. g3 {[%clk 0:02:43.6]}
22... Be4+ {[%clk 0:03:45.6]} 23. Kg1 {[%clk 0:02:33.4]} 23... g5 {[%clk
0:03:41.1]} 24. Rf2 {[%clk 0:02:30.8]} 24... c5 {[%clk 0:03:33.4]} 25. Bb5+
{[%clk 0:02:24.7]} 25... Ke7 {[%clk 0:03:31.2]} 26. Be1 {[%clk 0:02:18.2]} 26...
Bg2 {[%clk 0:03:16.1]} 27. Qe2 {[%clk 0:01:39.5]} 27... f5 {[%clk 0:03:10.6]}
28. Bd2 {[%clk 0:01:25.6]} 28... g4 {[%clk 0:03:03.1]} 29. e4 {[%clk 0:01:19.5]}
29... Qxe4 {[%clk 0:02:59.2]} 30. Bg5+ {[%clk 0:01:18.2]} 30... Kf7 {[%clk
0:02:56.5]} 31. Qd2 {[%clk 0:01:12.7]} 31... Bxf1 {[%clk 0:02:35.8]} 32. Rcxf1
{[%clk 0:01:07.7]} 32... Be5 {[%clk 0:02:12.7]} 33. Bd3 {[%clk 0:01:03.9]} 33...
Qd4 {[%clk 0:02:09.1]} 34. Be3 {[%clk 0:00:50.9]} 34... Qc3 {[%clk 0:02:07.8]}
35. Bxf5 {[%clk 0:00:42.2]} 35... Qxd2 {[%clk 0:02:04.7]} 36. Bxe6+ {[%clk
0:00:23.7]} 36... Kxe6 {[%clk 0:01:58.6]} 37. Rxd2 {[%clk 0:00:22.7]} 37... Rhf8
{[%clk 0:01:55.6]} 38. Bxc5 {[%clk 0:00:18.8]} 38... Rxf1+ {[%clk 0:01:53.2]}
39. Kxf1 {[%clk 0:00:18.4]} 39... Rc8 {[%clk 0:01:52.3]} 40. Bb6 {[%clk
0:00:16.7]} 40... Rc1+ {[%clk 0:01:46.7]} 41. Kf2 {[%clk 0:00:13.5]} 41... d4
{[%clk 0:01:37.3]} 42. Bxa5 {[%clk 0:00:08.9]} 42... Rh1 {[%clk 0:01:35.9]} 43.
Ke2 {[%clk 0:00:06]} 43... Rxh2+ {[%clk 0:01:35.1]} 44. Kd3 {[%clk 0:00:05.3]}
44... Rxd2+ {[%clk 0:01:34.6]} 45. Kxd2 {[%clk 0:00:04.8]} 45... h2 {[%clk
0:01:34.5]} 0-1